Cogmind - Beta 13 @@@ ROGUE MODE // 2024.07.11 @ 13:42:17 Player: celerysam Result: Destroyed by Y-64 Sentinel with KE Penetrator Performance ------------- Evolutions (4) 2000 Regions Visited (12) 2400 Robots Destroyed (22) 110 Value Destroyed (822) 822 Prototype IDs (16) 320 Alien Tech Used (0) 0 Bonus (920) 920 TOTAL SCORE: 6572 Bonus ------- Follower Combat Kills 20 Met Data Miner 300 Met Imprinter 300 Was Imprinted 300 Cogmind --------- Core Integrity 0/850 Matter 274/300 Energy 164/310 System Corruption 2% Temperature Cool (1) Movement Flying (35) Location -5/Proximity Caves Parts ------- > --- POWER (2) -------- Fission Core > --- PROPULSION (6) --- Improved VTOL Module > --- UTILITY (4) ------ Improved Cryofiber Web Advanced Weight Redist. System > --- WEAPON (3) ------- (None) > --- INVENTORY (5) ---- Advanced Weight Redist. System Heart of Steel Peak State ------------ > --- POWER ------------ Light Angular Momentum Engine Light Fission Core > --- PROPULSION ------- Gravmag System Gravmag System Gravmag System Cooled Airjet Cooled Airjet Makeshift Hover Unit > --- UTILITY ---------- Improved Cryofiber Web Small Storage Unit Advanced Weight Redist. System Hacking Drone Bay > --- WEAPON ----------- Gauss Cannon Heavy Missile Launcher Impact Mace > --- INVENTORY -------- Armored Wheel Gravmag System Improved VTOL Module Improved VTOL Module Xenon Bombardment Thruster Advanced Weight Redist. System Makeshift ECM Suite GAL Module [Rating: 71] Favorites ----------- Power Micro Nuclear Core Engine Makeshift Power Source Power Core Micro Nuclear Core Propulsion Improved VTOL Module Treads Medium Treads Leg Improved Titanium Leg Wheel Compact Wheel Hover Unit Cooled Airjet Flight Unit Improved VTOL Module Utility Small Storage Unit Device Advanced Weight Redist. System Storage Small Storage Unit Processor Corruption Screen Weapon Impact Mace Energy Gun EM Pulse Gun Energy Cannon Improved EM Pulse Cannon Ballistic Gun Light Assault Rifle Ballistic Cannon Gauss Cannon Launcher Mini Grenade Launcher Impact Weapon Impact Mace Slashing Weapon Katana Build | -11 -10 -9 -8 -7 -7 -7 -6 -6 -6 -6 -6 -5 ------- Run | Yrd Mat Mat Mat Fac Low Zio Pro Fac Low Low Dat Pro Slots Evolved 8 | . . 2 2 2 . . . 2 . . . . Power 1 | . . . 1 . . . . . . . . . Propulsion 4 | . . 2 . 2 . . . . . . . . Utility 2 | . . . 1 . . . . 1 . . . . Weapon 1 | . . . . . . . . 1 . . . . Parts Attached 82 | 5 1 8 16 12 . 6 1 11 7 5 . 10 Power 10 | . 1 . 2 1 . 1 . 1 1 1 . 2 Engine 4 | . 1 . 1 . . 1 . . 1 . . . Core 6 | . . . 1 1 . . . 1 . 1 . 2 Reactor . | . . . . . . . . . . . . . Propulsion 45 | 2 . 5 5 10 . 3 . 7 5 2 . 6 Treads 2 | . . . . 1 . 1 . . . . . . Leg 5 | . . 2 . 1 . 2 . . . . . . Wheel 10 | 2 . . 5 2 . . . . 1 . . . Hover 13 | . . . . 2 . . . 7 4 . . . Flight 15 | . . 3 . 4 . . . . . 2 . 6 Utility 13 | 1 . 1 4 . . 1 1 2 . 2 . 1 Device 11 | . . 1 3 . . 1 1 2 . 2 . 1 Storage 1 | 1 . . . . . . . . . . . . Processor 1 | . . . 1 . . . . . . . . . Hackware . | . . . . . . . . . . . . . Protection . | . . . . . . . . . . . . . Artifact . | . . . . . . . . . . . . . Weapon 14 | 2 . 2 5 1 . 1 . 1 1 . . 1 Energy Gun 1 | 1 . . . . . . . . . . . . Energy Cannon 3 | . . . 2 1 . . . . . . . . Ballistic Gun 4 | 1 . 1 1 . . . . . . . . 1 Ballistic Cannon 1 | . . . . . . . . 1 . . . . Launcher 3 | . . . 1 . . 1 . . 1 . . . Special Weapon . | . . . . . . . . . . . . . Impact Weapon 1 | . . . 1 . . . . . . . . . Slashing Weapon 1 | . . 1 . . . . . . . . . . Piercing Weapon . | . . . . . . . . . . . . . Special Melee Weapon . | . . . . . . . . . . . . . Unidentified Prototypes 5 | . . 1 1 2 . . . 1 . . . . Parts Lost 29 | . . . 3 . . . 1 4 . 4 . 17 Power 4 | . . . . . . . . 2 . . . 2 Propulsion 18 | . . . 3 . . . 1 1 . 3 . 10 Utility 3 | . . . . . . . . . . 1 . 2 Weapon 4 | . . . . . . . . 1 . . . 3 Highest Loss Streak 9 | . . . 3 . . . 1 3 . 4 . 9 To Critical Strikes . | . . . . . . . . . . . . . Average Slot Usage (%) 92 | . 81 99 96 94 100 100 97 84 91 93 86 52 Engine 6 | . 10 11 9 7 7 7 7 2 3 5 . . Core 6 | . . . 8 7 7 7 7 5 6 6 13 8 Treads 3 | . . . . 3 . 6 7 2 . . . . Leg 8 | . . 21 . 6 7 14 12 2 . . . . Wheel 4 | . 28 1 27 13 . . . . 1 . . . Hover 6 | . . . . 8 15 . . 19 35 30 20 5 Flight 15 | . . 21 4 7 23 23 23 12 . 5 13 13 Device 14 | . . 10 9 7 7 14 15 20 20 22 26 17 Storage 6 | . 14 11 9 7 7 7 7 6 6 3 . . Processor 1 | . . . 8 7 7 . . . . . . . Energy Gun 1 | . 14 11 . . . . . . . . . . Energy Cannon 1 | . . . 1 7 7 1 . . . . . . Ballistic Cannon 1 | . . . . . . . . 3 6 6 6 . Launcher 3 | . . . 7 . . 5 7 2 2 3 . . Impact Weapon 6 | . . . 8 7 7 7 7 6 6 6 6 3 Naked Turns . | . . . . . . . . . . . . . Heaviest Build 47 | 8 13 14 21 24 24 26 20 24 40 47 37 37 Greatest Support 69 | 26 26 20 64 69 25 29 25 53 64 64 37 37 Greatest Overweight (x) 2 | . . . . 1 . . . 1 . 2 . 1 Average Overweight (x) . | . . . . . . . . . . . . . Largest Inventory Capacity 8 | 8 8 8 8 8 8 8 8 8 8 8 5 5 Average Capacity 7 | 7 8 8 8 8 8 8 8 8 8 6 5 5 Most Carried 8 | 7 8 8 8 8 8 8 8 8 8 8 5 5 Average Carried 7 | 4 7 7 7 7 8 7 7 7 8 6 5 4 Final Capacity 8 | 8 8 8 8 8 8 8 8 8 8 5 5 5 Final Carried 8 | 7 8 8 8 8 8 8 8 8 8 5 5 4 Class Distribution -------------------- 81% | Mutant 15% | Derelict-Mutant Dominant Class ---------------- Mutant | -10/Materials Mutant | -9/Materials Mutant | -8/Materials Mutant | -7/Factory Mutant | -7/Lower Caves Mutant | -7/Zion Mutant | -6/Proximity Caves Mutant | -6/Factory Mutant | -6/Lower Caves Mutant | -6/Lower Caves Derelict-Mutant | -6/Data Miner Derelict-Mutant | -5/Proximity Caves Resources | -11 -10 -9 -8 -7 -7 -7 -6 -6 -6 -6 -6 -5 ----------- Run | Yrd Mat Mat Mat Fac Low Zio Pro Fac Low Low Dat Pro Matter Collected 988 | 207 59 56 145 90 48 26 56 88 39 69 . 105 Remotely . | . . . . . . . . . . . . . Salvage Created 776 | . 49 38 197 90 41 . 39 129 54 77 . 62 Parts 32 | . 6 2 6 5 1 . 3 1 2 2 . 4 Haulers Intercepted . | . . . . . . . . . . . . . Recyclers Shooed . | . . . . . . . . . . . . . Parts Field Recycled . | . . . . . . . . . . . . . Retrieved Matter . | . . . . . . . . . . . . . Parts Self-Destructed 12 | . . . . . . . 2 . . 2 . 8 Prevented 4 | . . . . . 1 . 1 . 2 . . . Kills | -11 -10 -9 -8 -7 -7 -7 -6 -6 -6 -6 -6 -5 ------- Run | Yrd Mat Mat Mat Fac Low Zio Pro Fac Low Low Dat Pro Combat Hostiles Destroyed 21 | . 3 1 4 2 2 . 1 2 1 2 . 3 Melee 5 | . . . 1 . 1 . 1 . 1 . . 1 Guns 6 | . 3 1 . . . . . . . . . 2 Cannons 2 | . . . . 2 . . . . . . . . AOE 2 | . . . . . . . . . . 2 . . Classes Destroyed 6 | . 1 1 1 . . . 1 1 . . . 1 Drone 1 | . . . . . . . . . . . . 1 Watcher 1 | . . . . . . . . 1 . . . . Swarmer 7 | . 3 . . . 2 . . . . . . 2 Grunt 6 | . . 1 1 2 . . . 2 . . . . Sentry 3 | . . . 3 . . . . . . . . . Hunter 3 | . . . . . . . 1 . . 2 . . Thug 1 | . . . . . . . . . 1 . . . Best Kill Streak 3 | . 3 1 2 2 2 . 1 3 1 2 . 2 Combat Bots Only 3 | . 3 1 2 2 2 . 1 2 1 2 . 2 Max Kills in Single Turn 2 | . 1 1 1 1 1 . 1 1 1 2 . 1 Gunslinging . | . . . . . . . . . . . . . Exploded 2 | . . . . . . . . . . 2 . . Melee 1 | . . . 1 . 1 . 1 . 1 . . 1 Uniques/NPCs Destroyed . | . . . . . . . . . . . . . Combat | -11 -10 -9 -8 -7 -7 -7 -6 -6 -6 -6 -6 -5 -------- Run | Yrd Mat Mat Mat Fac Low Zio Pro Fac Low Low Dat Pro Hostile Shots Fired 428 | . 21 17 32 40 15 . 33 98 7 41 . 124 Missed 173 | . 5 11 12 22 8 . 12 40 5 12 . 46 Damage Taken 3856 | . 135 66 304 177 135 . 455 495 37 536 . 1516 Core 1046 | . 43 14 30 14 23 . 67 87 . 123 . 645 Absorbed by Shields . | . . . . . . . . . . . . . Regen/Repaired (Parts) 16 | . . . . . . 16 . . . . . . Core Remaining (%) 91 | 100 82 96 94 . . . 85 . . . . . Volleys Fired 35 | . 7 5 . 3 . . . . . 2 . 18 Largest 2 | . 2 2 . 1 . . . . . 1 . 1 Hottest 69 | . 60 60 . 69 . . . . . 39 . 23 Shots Fired 47 | . 14 10 . 3 . . . . . 2 . 18 Gun 42 | . 14 10 . . . . . . . . . 18 Cannon 3 | . . . . 3 . . . . . . . . Launcher 2 | . . . . . . . . . . 2 . . Special . | . . . . . . . . . . . . . Kinetic 30 | . 7 5 . . . . . . . . . 18 Thermal . | . . . . . . . . . . . . . Explosive 2 | . . . . . . . . . . 2 . . Electromagnetic 15 | . 7 5 . 3 . . . . . . . . Robot Hit Streak 6 | . 3 2 . 5 . . . . . 6 . 3 Robot Miss Streak 4 | . 4 2 . . . . . . . 1 . 3 Penetration Max . | . . . . . . . . . . . . . Secondary Targets 2 | . 2 . . . . . . . . . . . Max Gunslinging Chain 1 | . 1 . . . . . . . . . . . Shots Hit Robots 50 | . 6 5 9 3 3 . 4 6 1 1 . 12 Core Hits 22 | . 4 2 1 2 1 . 1 . . 5 . 6 Critical Kills 2 | . . . . . 1 . 1 . . . . . Critical Parts Destroyed 6 | . . . 3 . . . 1 2 . . . . Critical Strikes 8 | . . . 3 . 1 . 2 2 . . . . Smash 8 | . . . 3 . 1 . 2 2 . . . . Melee Attacks 53 | . . . 11 . 5 4 6 8 1 . 10 8 Impact 53 | . . . 11 . 5 4 6 8 1 . 10 8 Slashing . | . . . . . . . . . . . . . Piercing . | . . . . . . . . . . . . . Sneak Attacks 2 | . . . . . . . . . 1 . . 1 Combat Hostiles 2 | . . . . . . . . . 1 . . 1 Follow-up Attacks . | . . . . . . . . . . . . . Damage Inflicted 1810 | . 55 53 354 94 139 . 194 312 71 224 . 314 Guns 240 | . 55 53 . . . . . . . . . 132 Cannons 94 | . . . . 94 . . . . . . . . Explosions 224 | . . . . . . . . . . 224 . . Melee 1252 | . . . 354 . 139 . 194 312 71 . . 182 Ramming . | . . . . . . . . . . . . . Kinetic 183 | . 25 26 . . . . . . . . . 132 Thermal . | . . . . . . . . . . . . . Explosive 224 | . . . . . . . . . . 224 . . Electromagnetic 151 | . 30 27 . 94 . . . . . . . . Impact 1252 | . . . 354 . 139 . 194 312 71 . . 182 Slashing . | . . . . . . . . . . . . . Piercing . | . . . . . . . . . . . . . Highest Corruption 2 | . . . . . . . . . . . . 2 Average Corruption 2 | . . . . . . . . . . . . 2 Corruption Purged . | . . . . . . . . . . . . . Corruption Blocked . | . . . . . . . . . . . . . Overload Shots . | . . . . . . . . . . . . . Overflow Damage 416 | . . . 122 . 35 . 36 150 31 . . 42 Projectiles . | . . . . . . . . . . . . . Explosions . | . . . . . . . . . . . . . Melee 416 | . . . 122 . 35 . 36 150 31 . . 42 Knockbacks 8 | . . . . . 1 . 1 6 . . . . Impact 8 | . . . . . 1 . 1 6 . . . . Kinetic . | . . . . . . . . . . . . . Secondary . | . . . . . . . . . . . . . Self-Inflicted Damage 56 | . . . . . . . . . . 56 . . Shots 2 | . . . . . . . . . . 2 . . Rammed . | . . . . . . . . . . . . . Targets Rammed . | . . . . . . . . . . . . . Kicked . | . . . . . . . . . . . . . Crushed . | . . . . . . . . . . . . . Highest Temperature 57 | . 40 20 8 57 . . . 14 . . . 2 Average Temperature 16 | . 17 14 8 23 . . . 7 . . . 2 Received Heat Transfer 630 | . . 24 126 72 36 . 48 186 . 9 . 129 Siege Activations . | . . . . . . . . . . . . . Robots Corrupted . | . . . . . . . . . . . . . Combat Hostiles . | . . . . . . . . . . . . . Parts Fried 8 | . . . 3 . 2 . . 3 . . . . Impact Corruptions 14 | . . . 5 . 2 . 1 4 1 . . 1 Robots Melted . | . . . . . . . . . . . . . Combat Hostiles . | . . . . . . . . . . . . . Parts Melted . | . . . . . . . . . . . . . Heat Transferred . | . . . . . . . . . . . . . Parts Sabotaged . | . . . . . . . . . . . . . Parts Stolen . | . . . . . . . . . . . . . Parts Stripped . | . . . . . . . . . . . . . Power Chain Reactions . | . . . . . . . . . . . . . Alert | -11 -10 -9 -8 -7 -7 -7 -6 -6 -6 -6 -6 -5 ------- Run | Yrd Mat Mat Mat Fac Low Zio Pro Fac Low Low Dat Pro Peak Influence 239 | . 70 140 239 223 . . . 40 . . . . Initial 108 | . . 29 59 108 . . . 9 . . . . Average 103 | . 17 77 153 163 . . . 16 . . . . Maximum Alert Level 1 | . . . 1 1 . . . . . . . . Low Security (%) 89 | 100 100 100 72 91 . . . 100 . . . . Level 1 10 | . . . 27 8 . . . . . . . . Level 2 . | . . . . . . . . . . . . . Level 3 . | . . . . . . . . . . . . . Level 4 . | . . . . . . . . . . . . . Level 5 . | . . . . . . . . . . . . . High Security . | . . . . . . . . . . . . . Max Security . | . . . . . . . . . . . . . Squads Dispatched 7 | . . 1 4 1 . . . . . . . 1 Investigation . | . . . . . . . . . . . . . Extermination . | . . . . . . . . . . . . . Reinforcement 5 | . . 1 3 1 . . . . . . . . Assault 1 | . . . . . . . . . . . . 1 Garrison 1 | . . . 1 . . . . . . . . . Intercept . | . . . . . . . . . . . . . Searches Triggered . | . . . . . . . . . . . . . Construction Impeded . | . . . . . . . . . . . . . Haulers Reinforced . | . . . . . . . . . . . . . Active Scanning Responses . | . . . . . . . . . . . . . Cargo Convoy Interrupts . | . . . . . . . . . . . . . Stealth | -11 -10 -9 -8 -7 -7 -7 -6 -6 -6 -6 -6 -5 --------- Run | Yrd Mat Mat Mat Fac Low Zio Pro Fac Low Low Dat Pro Distress Signals 3 | . . 1 1 1 . . . . . . . . Communications Jammed . | . . . . . . . . . . . . . Distress Signals . | . . . . . . . . . . . . . Times Spotted 85 | . 3 12 12 7 7 . 2 4 5 8 . 25 Peak Tracking Total 9 | . 3 7 4 3 7 . 2 3 6 3 . 9 Tactical Retreats 12 | . . 2 . . 1 . 1 . . 3 . 5 Traps | -11 -10 -9 -8 -7 -7 -7 -6 -6 -6 -6 -6 -5 ------- Run | Yrd Mat Mat Mat Fac Low Zio Pro Fac Low Low Dat Pro Traps Triggered . | . . . . . . . . . . . . . Indirectly . | . . . . . . . . . . . . . Trap Hack Attempts . | . . . . . . . . . . . . . Triggered . | . . . . . . . . . . . . . Disarmed . | . . . . . . . . . . . . . Reprogrammed . | . . . . . . . . . . . . . Reused . | . . . . . . . . . . . . . Traps Extracted . | . . . . . . . . . . . . . Installed . | . . . . . . . . . . . . . Triggered . | . . . . . . . . . . . . . Machines | -11 -10 -9 -8 -7 -7 -7 -6 -6 -6 -6 -6 -5 ---------- Run | Yrd Mat Mat Mat Fac Low Zio Pro Fac Low Low Dat Pro Machines Disabled . | . . . . . . . . . . . . . Max in Single Turn . | . . . . . . . . . . . . . Machines Repaired . | . . . . . . . . . . . . . Machines Dismantled . | . . . . . . . . . . . . . Machines Sabotaged . | . . . . . . . . . . . . . Overloaded Fab Kills . | . . . . . . . . . . . . . Hacking | -11 -10 -9 -8 -7 -7 -7 -6 -6 -6 -6 -6 -5 --------- Run | Yrd Mat Mat Mat Fac Low Zio Pro Fac Low Low Dat Pro Machines Accessed 15 | . 1 1 2 4 . 1 . 1 . 1 4 . Terminals 6 | . 1 1 2 2 . . . . . . . . Fabricators 2 | . . . . 1 . . . 1 . . . . Repair Stations . | . . . . . . . . . . . . . Recycling Units 1 | . . . . 1 . . . . . . . . Scanalyzers . | . . . . . . . . . . . . . Garrison Access . | . . . . . . . . . . . . . Total Hacks 46 | . 2 2 3 5 . 3 . 2 . 1 28 . Successful 40 | . 1 1 3 2 . 3 . 1 . 1 28 . Failed 6 | . 1 1 . 3 . . . 1 . . . . Catastrophic . | . . . . . . . . . . . . . Database Lockouts . | . . . . . . . . . . . . . Manual 22 | . 2 2 3 4 . 1 . 1 . . 9 . Terminals 10 | . 2 2 3 3 . . . . . . . . Fabricators 3 | . . . . 1 . . . 2 . . . . Repair Stations . | . . . . . . . . . . . . . Recycling Units 1 | . . . . 1 . . . . . . . . Scanalyzers . | . . . . . . . . . . . . . Garrison Access . | . . . . . . . . . . . . . Terminal Hacks 33 | . . . . 1 . 3 . . . 1 28 . Record 11 | . . . . . . . . . . . 11 . Part Schematic 14 | . . . . . . 3 . . . . 11 . Robot Schematic 3 | . . . . . . . . . . . 3 . Prototype ID Bank 3 | . . . . . . . . . . . 3 . Open Door 1 | . . . . . . . . . . 1 . . Zone Layout 1 | . . . . 1 . . . . . . . . Fabricator Hacks 1 | . . . . . . . . 1 . . . . Load Schematic 1 | . . . . . . . . 1 . . . . Repair Station Hacks . | . . . . . . . . . . . . . Recycling Unit Hacks . | . . . . . . . . . . . . . Scanalyzer . | . . . . . . . . . . . . . Garrison Access Hacks . | . . . . . . . . . . . . . Unauthorized Hacks 6 | . 1 1 3 1 . . . . . . . . Terminals 6 | . 1 1 3 1 . . . . . . . . Assimilate 4 | . 1 . 2 1 . . . . . . . . Botnet 1 | . . . 1 . . . . . . . . . Operators 1 | . . 1 . . . . . . . . . . Fabricators . | . . . . . . . . . . . . . Repair Stations . | . . . . . . . . . . . . . Recycling Units . | . . . . . . . . . . . . . Scanalyzers . | . . . . . . . . . . . . . Garrison Access . | . . . . . . . . . . . . . Data Cores Recovered . | . . . . . . . . . . . . . Used . | . . . . . . . . . . . . . Hacking Detections 6 | . . 1 1 3 . . . 1 . . . . Full Trace Events . | . . . . . . . . . . . . . Feedback Events . | . . . . . . . . . . . . . Feedback Blocked . | . . . . . . . . . . . . . Robot Schematics Acquired 6 | . . . . . . 3 . . . . 3 . Robots Built . | . . . . . . . . . . . . . Authchips . | . . . . . . . . . . . . . Time . | . . . . . . . . . . . . . Total Robot Build Rating . | . . . . . . . . . . . . . Part Schematics Acquired 30 | . . . . . . 19 . . . . 11 . Parts Built . | . . . . . . . . . . . . . Authchips . | . . . . . . . . . . . . . Time . | . . . . . . . . . . . . . Total Part Build Rating . | . . . . . . . . . . . . . Parts Repaired . | . . . . . . . . . . . . . Time . | . . . . . . . . . . . . . Parts Recycled . | . . . . . . . . . . . . . Recycled Matter . | . . . . . . . . . . . . . Retrieved Matter . | . . . . . . . . . . . . . Retrieved Components . | . . . . . . . . . . . . . Parts Scanalyzed . | . . . . . . . . . . . . . Part Schematics Acquired . | . . . . . . . . . . . . . Parts Damaged . | . . . . . . . . . . . . . Bothacking | -11 -10 -9 -8 -7 -7 -7 -6 -6 -6 -6 -6 -5 ------------ Run | Yrd Mat Mat Mat Fac Low Zio Pro Fac Low Low Dat Pro Used RIF Installer . | . . . . . . . . . . . . . Robots Hacked . | . . . . . . . . . . . . . Non-combat . | . . . . . . . . . . . . . Combat . | . . . . . . . . . . . . . Robot Hacks Applied . | . . . . . . . . . . . . . Relay Couplers Released . | . . . . . . . . . . . . . Fabnet Peak Effective % . | . . . . . . . . . . . . . Robots Rewired . | . . . . . . . . . . . . . Allies Hacked . | . . . . . . . . . . . . . Hacks Repelled . | . . . . . . . . . . . . . Allies | -11 -10 -9 -8 -7 -7 -7 -6 -6 -6 -6 -6 -5 -------- Run | Yrd Mat Mat Mat Fac Low Zio Pro Fac Low Low Dat Pro Total Allies 5 | . . . . . . 4 . . . . . 1 Largest Group 4 | . . . . . . 4 4 1 . . . 1 Highest-Rated Group 155 | . . . . . . 155 155 37 . . . 96 Highest-Rated Ally 96 | . . . . . . 41 41 37 . . . 96 Total Orders . | . . . . . . . . . . . . . Ally Attacks 10 | . . . . . . . . 2 . . . 8 Total Damage 346 | . . . . . . . . 21 . . . 325 Kills 1 | . . . . . . . . . . . . 1 Allies Corrupted . | . . . . . . . . . . . . . Allies Melted 1 | . . . . . . . 1 . . . . . Intel | -11 -10 -9 -8 -7 -7 -7 -6 -6 -6 -6 -6 -5 ------- Run | Yrd Mat Mat Mat Fac Low Zio Pro Fac Low Low Dat Pro Robot Analysis Total . | . . . . . . . . . . . . . Derelict Logs Recovered 6 | . . . . . . 1 2 . 1 1 . 1 Drone Launches 2 | . . . . . . . . 1 1 . . . Drone Recoveries 1 | . . . . . . . . 1 . . . . Exploration | -11 -10 -9 -8 -7 -7 -7 -6 -6 -6 -6 -6 -5 ------------- Run | Yrd Mat Mat Mat Fac Low Zio Pro Fac Low Low Dat Pro Turns Passed 3832 | 79 137 153 372 265 98 1225 554 120 154 228 170 277 Spaces Moved 4847 | 64 114 213 363 365 211 1138 695 147 338 486 224 489 Core 6 | 2 . . . . . . . . . . . 4 Treads 3 | . . . . 3 . . . . . . . . Legs 144 | . . 4 . 31 . 109 . . . . . . Wheels 523 | 62 114 . 299 48 . . . . . . . . Hover 1353 | . . . . 74 . . . 83 338 484 224 150 Flight 2818 | . . 209 64 209 211 1029 695 64 . 2 . 335 Fastest Speed 26 | 50 90 44 44 40 40 40 60 30 38 38 48 26 Average Speed 61 | 88 90 57 85 62 40 75 67 52 41 43 48 41 Slowest Speed 184 | 90 90 120 100 160 40 140 70 120 47 184 48 121 Overloaded Moves . | . . . . . . . . . . . . . Propulsion Burnouts . | . . . . . . . . . . . . . Robots Hopped 11 | . . 8 1 1 . . . . . 1 . . Cave-ins Triggered . | . . . . . . . . . . . . . Exploration Rate (%) 44 | 5 22 25 29 15 37 89 78 6 58 69 75 70 Regions Visited 12 Branch Regions 7 Pre-discovered Areas 1 | . . . . . . . . . . . 1 . Known Exits Taken 1 | . . . . . . . . 1 . . . . Unknown Exits Taken 11 | 1 1 1 1 1 1 1 1 . 1 1 1 . Scrap Searched 15 | . . . . . 1 2 4 . 3 3 . 2 Spaces Dug 10 | . . . . . . . . . . . 10 . Terrain Destroyed 31 | . . . . . . . . . . 21 10 . Melee 10 | . . . . . . . . . . . 10 . Projectile . | . . . . . . . . . . . . . AOE 21 | . . . . . . . . . . 21 . . Terrain Rammed . | . . . . . . . . . . . . . Walls Destroyed . | . . . . . . . . . . . . . Machines Disabled . | . . . . . . . . . . . . . Actions | -11 -10 -9 -8 -7 -7 -7 -6 -6 -6 -6 -6 -5 --------- Run | Yrd Mat Mat Mat Fac Low Zio Pro Fac Low Low Dat Pro Total 5547 | 86 136 226 405 397 215 1498 766 175 345 499 268 531 Wait 462 | 6 9 1 . 1 . 342 62 . . 2 35 4 Move 4815 | 63 113 198 360 362 210 1137 694 146 337 483 223 489 Hop 9 | . . 6 1 1 . . . . . 1 . . Pick Up 44 | 12 4 4 8 6 . 3 1 5 . 1 . . Fast Attach 29 | . . 2 3 7 . 1 1 2 3 3 . 7 Attach 25 | 5 1 3 4 3 . . . 6 . . . 3 Detach 6 | . . 1 . 1 . 1 . 1 . . . 2 Swap 28 | . . 3 9 2 . 5 . 3 4 2 . . Drop 41 | . 2 3 9 11 . 5 2 4 . 5 . . Fire 35 | . 7 5 . 3 . . . . . 2 . 18 Melee 53 | . . . 11 . 5 4 6 8 1 . 10 8 Ram . | . . . . . . . . . . . . . Kick . | . . . . . . . . . . . . . Crush . | . . . . . . . . . . . . . Escape Stasis . | . . . . . . . . . . . . . Rewire . | . . . . . . . . . . . . . Trap . | . . . . . . . . . . . . . Miscellaneous . | . . . . . . . . . . . . . Route ------- -11/Scrapyard -10/Materials -9/Materials -8/Materials -7/Factory -7/Lower Caves -7/Zion -6/Proximity Caves -6/Factory (discovered 2 exits: *Low x2) -6/Lower Caves -6/Lower Caves -6/Data Miner -5/Proximity Caves History --------- Turn | Location | Event 17 | -11/Scrapyard | Discovered new exit (range 16) 80 | -11/Scrapyard | Entered Materials 170 | -10/Materials | Discovered new exit (range 13) 217 | -10/Materials | Entered another Materials area 217 | -9/Materials | Evolved 2 slots: Propulsion x2 336 | -9/Materials | Build established: Mutant 366 | -9/Materials | Discovered new exit (range 10) 370 | -9/Materials | Entered another Materials area 370 | -8/Materials | Evolved 2 slots: Power x1, Utility x1 483 | -8/Materials | Lost 3 parts (3n) 688 | -8/Materials | Garrison activated, responded to threat 729 | -8/Materials | Discovered new exit (range 15) 742 | -8/Materials | Entered Factory 742 | -7/Factory | Evolved 2 slots: Propulsion x2 1000 | -7/Factory | Discovered new exit (range 9) 1007 | -7/Factory | Entered Lower Caves 1049 | -7/Lower Caves | Attracted the attention of an 0b10 outpost 1102 | -7/Lower Caves | A Derelict revealed a hidden shortcut to a safe place 1105 | -7/Lower Caves | Entered Zion 1133 | -7/Zion | Found GAL Module 1407 | -7/Zion | Learned location of 1 exit from Factory 1427 | -7/Zion | Acquired unknown access codes intercepted by a Zionite 1483 | -7/Zion | Imprinted 1485 | -7/Zion | Declared Zion's savior 1650 | -7/Zion | Given the Hacking Drone Bay 1690 | -7/Zion | Found Prototype Device 1952 | -7/Zion | Discovered new exit (range 13) 2330 | -7/Zion | Entered Proximity Caves 2330 | -6/Proximity Caves | Accompanied by 4 allies 2396 | -6/Proximity Caves | Learned Factory terminal intel 2466 | -6/Proximity Caves | Spotted B-75 Beast 2821 | -6/Proximity Caves | Discovered new exit (range 13) 2884 | -6/Proximity Caves | Entered Factory 2884 | -6/Factory | Accompanied by 1 ally 2884 | -6/Factory | Evolved 2 slots: Utility x1, Weapon x1 2885 | -6/Factory | Identified exit to Lower Caves 2886 | -6/Factory | Loaded intel: 28 terminal locations 2886 | -6/Factory | Identified Hacking Drone Bay 2973 | -6/Factory | Lost 3 parts (2p1w) 3001 | -6/Factory | Discovered exit to Lower Caves (range 8) 3004 | -6/Factory | Entered Lower Caves 3131 | -6/Lower Caves | Learned Factory interactive machine intel 3152 | -6/Lower Caves | Discovered new exit (range 15) 3158 | -6/Lower Caves | Entered another Lower Caves area 3165 | -6/Lower Caves | Encountered a Warlord checkpoint 3200 | -6/Lower Caves | Found Prototype Device 3311 | -6/Lower Caves | Lost 4 parts (3n1u) 3334 | -6/Lower Caves | Learned Factory emergency access door positions 3343 | -6/Lower Caves | Discovered new exit (range 8) 3386 | -6/Lower Caves | Entered Data Miner 3386 | -6/Data Miner | Discovered new exit (range 6) 3396 | -6/Data Miner | Met Data Miner 3406 | -6/Data Miner | Learned location of Section 7 (-2) 3406 | -6/Data Miner | Acquired the access code to Warlord's prototype stash 3436 | -6/Data Miner | Received God Mode back door access code from Data Miner 3556 | -6/Data Miner | Entered Proximity Caves 3559 | -5/Proximity Caves | Spotter reported a threat 3585 | -5/Proximity Caves | Attracted the attention of an 0b10 outpost 3589 | -5/Proximity Caves | Escorted by Enhanced Grunt 3618 | -5/Proximity Caves | Lost 3 parts (2n1w) 3647 | -5/Proximity Caves | Attracted the attention of an 0b10 checkpoint 3678 | -5/Proximity Caves | Learned Factory terminal intel 3688 | -5/Proximity Caves | Spotter reported a threat 3705 | -5/Proximity Caves | Spotted B-75 Beast 3706 | -5/Proximity Caves | Core integrity fell below 50% 3741 | -5/Proximity Caves | Core integrity fell below 20% 3785 | -5/Proximity Caves | Lost 9 parts (1p5n2u1w) 3792 | -5/Proximity Caves | Spotter reported a threat 3833 | -5/Proximity Caves | Destroyed by Y-64 Sentinel with KE Penetrator Last Messages --------------- 03748_ Lgt. Nuclear Core fries itself beyond repair. 03748_ S-27 Virus destroyed. 03750_ Acquired 8 matter. 03750_ Acquired VTOL Module. 03751_ Autogun fries itself beyond repair. 03752_ Acquired 10 matter. 03754_ Acquired 4 matter. 03754_ VTOL Module destroyed. 03757_ Acquired 4 matter. 03758_ S-27 Virus destroyed. 03759_ Acquired 2 matter. 03761_ Acquired VTOL Module. 03789_ Acquired 20 matter. 03790_ N-01 Spotter is scanning... 03792_ ALERT: Unidentified potential threat approaching Complex 0b10. 03801_ VTOL Module destroyed. 03819_ Autogun destroyed. 03823_ Lgt. Nuclear Core destroyed. 03823_ VTOL Module destroyed. 03830_ Penetrated by Slug. Map ----- +----------------------------------------------------+ | ??# # #### #??????####??????????# | | ### ?????????????????# | | # ### #??????????????????????## ### | | ## "##### ##?????????????????##### #?## | | ?## ##?## ????????????????## ## #?## | | ### #?## ???????????????## ### #??# | | ### ??????????????## #?# ?? | | ## ??????????????# ## #?## | | ####### ??????????????# #### #??## | | ???????# ?????? ??????# ##### #???## | | ???????# ?????? ??????# ### #???? | | ????????# #?????? ??????## ## ##???? | | ????????# #?????# #??????## #?????? | | ????????# #####?# #???????# #?????? | | ????????# ### #???????# ## #???????## | | ????????# ## #???????## #?# #???????? | | ????????## ## ##???###?# #?? #???????? | | ????????## ## # ##?# #?# #?? ##???????? | | ????????# ### # ## ### #?#####????????? | | ???????## #?# # ## ##?????????????? | | ???????# ### # #?# ###???????????? | | ???????# ## ## #???# #???????????? | | ???????# ### ## #???## #???????????? | | ????#### ### ###### ##???????????? | | ????# ## ##????????????? | | ????# #### @ ####?????????????? | | #??## #??# ########????????????????? | | ##?# ### #?## m % #???????????????????????? | | #?# #?# ### ##??????????????????????? | | #?# #?# "% #??????????????????????? | | #?## ##### Y #??????????????????????? | | ##?## #??## #??????????????????????? | | #### #???##### #??????????????????????? | | ## ##???????## # ###??????????????????????? | | ##?????????#### #????????????????????????? | | #?????????????# #????????????????????????? | | # ###???????????# ##########???????????????? | | ### ##??????????# #???????????????? | | ##### ##?????????# #??#####????????? | | #?# #?????????###### ### #?## #????????? | | ##?# ##??????????????# ### #????????? | | ##?##% ##???????????????# ## ##????????? | | #??#!|#######???????????## #?????????? | | #??#%% #???????####?## #?????????? | | ###??#!![ #???????# #### #### #?????????? | | #???## #???????# ### ##??####?????????? | | ????# #???????# ##???????????????? | | ##### # #????#### #???????????????? | | #???## #???????????????? | | #???# ###?????????????? | +----------------------------------------------------+ Best States ------------- Heat Dissipation 37 Coolant Potential 65 Energy Generation 31 Energy Capacity 370 Matter Stores 300 Matter Capacity 300 Sight Range 16 Terrain Scan Density 10 ECM Strength 2 Additional Mass Support 9 Base Temperature (-) 150 Corruption Block 8 Evasion (%) 64 Recoil Reduction 1 Item Schematics ----------------- Barrage Gun | -7/Zion | Free Flamer | -7/Zion | Free Tactical Coordination Suite | -7/Zion | Free System Restoration Module | -7/Zion | Archive Power Amplifier | -7/Zion | Archive Imp. Shield Generator | -7/Zion | Archive Beamcaster | -7/Zion | Archive Chainsword | -7/Zion | Archive Lgt. Angular Momentum Engine | -7/Zion | Archive Imp. Melee Analysis Suite | -7/Zion | Archive Adv. Drone Bay | -7/Zion | Archive Mak. Trap Scanner | -7/Zion | Archive Lyr. Light Armor Plating | -7/Zion | Archive Hvy. Flak Cannon | -7/Zion | Archive Arc Projector | -7/Zion | Archive Force Field | -7/Zion | Archive Hvy. Pick | -7/Zion | Archive Great Axe | -7/Zion | Archive Hvy. Mass Driver | -7/Zion | Archive Combat Drone Bay | -6/Data Miner | Free Lgt. Regenerative Plating | -6/Data Miner | Free Cld. Gravmag System | -6/Data Miner | Free Exp. Heat Sink | -6/Data Miner | Free Hvy. Proton Cannon | -6/Data Miner | Free Graphene Brace | -6/Data Miner | Free Impulse Thruster | -6/Data Miner | Free Railgun | -6/Data Miner | Free Imp. Heavy Treads | -6/Data Miner | Free Mic. Antimatter Reactor | -6/Data Miner | Free Enh. Force Lance | -6/Data Miner | Free Robot Schematics ------------------ B-48 Gladiator | -7/Zion | Archive B-36 Bruiser | -7/Zion | Archive L-41 Fighter | -7/Zion | Archive B-60 Warrior | -6/Data Miner | Free R-10 Processor | -6/Data Miner | Free C-35 Carver | -6/Data Miner | Free Fabricated ------------ Nothing Alien Tech Used ----------------- None Achievements -------------- None Challenges ------------ None Game ------ Seed PowerActivePit Manual? 0 Play Time 01:01:07 Cumulative 95.6 hours Start 2024.07.11 @ 12:28:59 End 2024.07.11 @ 13:42:17 Sessions 1 Manual Loads 0 Difficulty Rogue Special Mode None Game No. 139 Rogue 139 Adventurer 0 Explorer 0 Win Type - Total 0 Types 0/0/0/0/0/0/0/0/0 Lore% 43 Gallery% 55 Achievement% 35 Wizard Run 0 Options --------- Layout 0 ASCII 0 Keyboard 0 Movement Mouse Keybinds 0 Fullscreen 1 Font 24/Smallcaps Map View 76x50 Zoom Use 0% Tactical HUD 1 Map Filters NONE Filters NONE Steam 1 RUN: f4981c1c-a8de-4518-b3c7-9544896a6e4f